fUSD/lending_fUSD_20251210
["ID","MTS","AMOUNT","RATE_DAILY","PERIOD"]
[398070096,1765355442560,-500.0,0.00014051,2]
[398070097,1765355442571,-500.0,0.00014051,2]
[398070098,1765355442581,-500.0,0.00014051,2]
[398070099,1765355442591,-500.0,0.00014051,2]
[398070100,1765355442601,-468.41815531,0.00014051,2]
[398070101,1765355442611,-500.0,0.00014051,2]
[398070102,1765355442622,-500.0,0.00014051,2]
[398070103,1765355442632,-500.0,0.00014051,2]
[398070104,1765355442642,-209.62246633,0.00014051,2]
[398070105,1765355442652,-500.0,0.00014051,2]
[398070106,1765355442662,-500.0,0.00014051,2]
[398070107,1765355442673,-500.0,0.00014051,2]
[398070108,1765355442683,-500.0,0.00014051,2]
[398070109,1765355442693,-772.48,0.00014051,2]
[398070110,1765355442703,-500.0,0.00014051,2]
[398070111,1765355442713,-724.59,0.00014051,2]
[398070112,1765355442725,-605.66,0.00014051,2]
[398070113,1765355442735,-500.0,0.00014051,2]
[398070114,1765355442746,-500.0,0.00014051,2]
[398070115,1765355442761,-500.0,0.00014051,2]
[398070116,1765355442771,-557.43,0.00014051,2]
[398070117,1765355442781,-500.0,0.00014051,2]
[398070118,1765355442791,-500.0,0.00014051,2]
[398070119,1765355442802,-500.0,0.00014051,2]
[398070120,1765355442812,-500.0,0.00014051,2]
[398070121,1765355442823,-555.68,0.00014051,2]
[398070122,1765355442833,-500.0,0.00014051,2]
[398070123,1765355442844,-500.0,0.00014051,2]
[398070124,1765355442854,-500.0,0.00014051,2]
[398070125,1765355442864,-500.0,0.00014051,2]
[398070126,1765355442875,-500.0,0.00014051,2]
[398070127,1765355442886,-660.05,0.00014051,2]
[398070128,1765355442896,-500.0,0.00014051,2]
[398070129,1765355442907,-1261.23,0.00014051,2]
[398070130,1765355442918,-500.0,0.00014051,2]
[398070131,1765355442928,-1138.44,0.00014051,2]
[398070132,1765355442939,-605.85,0.00014051,2]
[398070133,1765355442953,-500.0,0.00014051,2]
[398070134,1765355442964,-500.0,0.00014051,2]
[398070135,1765355442974,-1106.55,0.00014051,2]
[398070136,1765355442986,-500.0,0.00014051,2]
[398070137,1765355442996,-713.37,0.00014051,2]
[398070138,1765355443006,-500.0,0.00014051,2]
[398070139,1765355443017,-500.0,0.00014051,2]
[398070140,1765355443027,-500.0,0.00014051,2]
[398070141,1765355443037,-500.0,0.00014051,2]
[398070142,1765355443048,-500.0,0.00014051,2]
[398070143,1765355443059,-786.73,0.00014051,2]
[398070144,1765355443069,-500.0,0.00014051,2]
[398070145,1765355443080,-524.32,0.00014051,2]
[398070146,1765355443090,-500.0,0.00014051,2]
[398070147,1765355443100,-500.0,0.00014051,2]
[398070148,1765355443111,-500.0,0.00014051,2]
[398070149,1765355443121,-500.0,0.00014051,2]
[398070150,1765355443132,-1352.11,0.00014051,2]
[398070151,1765355443146,-500.0,0.00014051,2]
[398070152,1765355443156,-500.0,0.00014051,2]
[398070153,1765355443167,-565.78,0.00014051,2]
[398070154,1765355443179,-541.78,0.00014051,2]
[398070155,1765355443189,-500.0,0.00014051,2]
[398070156,1765355443200,-553.62,0.00014051,2]
[398070157,1765355443210,-500.0,0.00014051,2]
[398070158,1765355443220,-500.0,0.00014051,2]
[398070159,1765355443230,-500.0,0.00014051,2]
[398070160,1765355443242,-500.0,0.00014051,2]
[398070163,1765355443252,-500.0,0.00014051,2]
[398070165,1765355443262,-1142.85,0.00014051,2]
[398070166,1765355443275,-1491.21,0.00014051,2]
[398070167,1765355443285,-500.0,0.00014051,2]
[398070168,1765355443295,-500.0,0.00014051,2]
[398070169,1765355443305,-620.14,0.00014051,2]
[398070170,1765355443316,-357.45912086,0.00014051,2]
[398070171,1765355443327,-500.0,0.00014051,2]
[398070172,1765355443337,-500.0,0.00014051,2]
[398070173,1765355443349,-500.0,0.00014051,2]
[398070174,1765355443359,-500.0,0.00014051,2]
[398070175,1765355443369,-500.0,0.00014051,2]
[398070176,1765355443379,-3783.49,0.00014051,2]
[398070177,1765355443390,-500.0,0.00014051,2]
[398070178,1765355443401,-500.0,0.00014051,2]
[398070179,1765355443410,-722.63,0.00014051,2]
[398070180,1765355443419,-500.0,0.00014051,2]
[398070181,1765355443429,-500.0,0.00014051,2]
[398070182,1765355443438,-500.0,0.00014051,2]
[398070183,1765355443448,-500.0,0.00014051,2]
[398070184,1765355443457,-500.0,0.00014051,2]
[398070185,1765355443467,-870.4,0.00014051,2]
[398070186,1765355443476,-601.1,0.00014051,2]
[398070187,1765355443486,-571.08,0.00014051,2]
[398070188,1765355443495,-625.4,0.00014051,2]
[398070189,1765355443504,-500.0,0.00014051,2]
[398070190,1765355443515,-500.0,0.00014051,2]
[398070191,1765355443525,-547.53,0.00014051,2]
[398070192,1765355443534,-500.0,0.00014051,2]
[398070193,1765355443545,-500.0,0.00014051,2]
[398070194,1765355443555,-899.5,0.00014051,2]
[398070195,1765355443565,-969.39,0.00014051,2]
[398070196,1765355443575,-500.0,0.00014051,2]
[398070197,1765355443585,-682.95,0.00014051,2]
[398070198,1765355443595,-500.0,0.00014051,2]
[398070199,1765355443605,-808.5,0.00014051,2]
[398070200,1765355443615,-191.94276787,0.00014051,2]
[398070201,1765355443625,-500.0,0.00014051,2]
[398070202,1765355443636,-241.70137426,0.00014051,2]
[398070203,1765355443646,-174.20752369,0.00014051,2]
[398070204,1765355443656,-547.66,0.00014051,2]
[398070205,1765355443666,-500.0,0.00014051,2]
[398070206,1765355443676,-500.0,0.00014051,2]
[398070207,1765355443687,-549.74,0.00014051,2]
[398070208,1765355443698,-500.0,0.00014051,2]
[398070209,1765355443709,-500.0,0.00014051,2]
[398070210,1765355443718,-2964.94,0.00014051,2]
[398070211,1765355443729,-2500.52,0.00014051,2]
[398070213,1765355443739,-500.0,0.00014051,2]
[398070214,1765355443748,-500.0,0.00014051,2]
[398070215,1765355443758,-500.0,0.00014051,2]
[398070216,1765355443768,-1000.0,0.00014051,2]
[398070217,1765355443778,-397.53985836,0.00014051,2]
[398070218,1765355443789,-500.0,0.00014051,2]
[398070219,1765355443798,-1120.96,0.00014051,2]
[398070220,1765355443808,-500.0,0.00014051,2]
[398070221,1765355443819,-719.49,0.00014051,2]
[398070222,1765355443828,-500.0,0.00014051,2]
[398070223,1765355443839,-1281.36,0.00014051,2]
[398070224,1765355443849,-521.72,0.00014051,2]
[398070225,1765355443859,-500.0,0.00014051,2]
[398070227,1765355443869,-1498.88,0.00014051,2]
[398070229,1765355443879,-500.0,0.00014051,2]
[398070230,1765355443890,-541.9,0.00014051,2]
[398070231,1765355443900,-514.09,0.00014051,2]
[398070232,1765355443911,-1210.84,0.00014051,2]
[398070233,1765355443920,-500.0,0.00014051,2]
[398070234,1765355443931,-505.64573189,0.00014051,2]
[398070235,1765355443941,-500.0,0.00014051,2]
[398070236,1765355443950,-500.0,0.00014051,2]
[398070237,1765355443962,-500.0,0.00014051,2]
[398070238,1765355443972,-500.0,0.00014051,2]
[398070239,1765355443982,-734.52,0.00014051,2]
[398070240,1765355443993,-500.0,0.00014051,2]
[398070241,1765355444004,-500.0,0.00014051,2]
[398070242,1765355444014,-500.0,0.00014051,2]
[398070243,1765355444024,-500.0,0.00014051,2]
[398070244,1765355444034,-936.7,0.00014051,2]
[398070245,1765355444044,-734.14,0.00014051,2]
[398070246,1765355444055,-500.0,0.00014051,2]
[398070247,1765355444064,-500.0,0.00014051,2]
[398070248,1765355444074,-500.0,0.00014051,2]
[398070249,1765355444084,-623.42,0.00014051,2]
[398070250,1765355444094,-500.0,0.00014051,2]
[398070251,1765355444103,-500.0,0.00014051,2]
[398070252,1765355444114,-500.0,0.00014051,2]
[398070253,1765355444124,-500.0,0.00014051,2]
[398070254,1765355444134,-500.0,0.00014051,2]
[398070255,1765355444145,-320.10433197,0.00014051,2]
[398070256,1765355444158,-500.0,0.00014051,2]
[398070257,1765355444169,-500.0,0.00014051,2]
[398070258,1765355444179,-500.0,0.00014051,2]
[398070259,1765355444190,-500.0,0.00014051,2]
[398070260,1765355444200,-500.62937319,0.00014052,2]
[398070261,1765355444210,-500.0,0.00014052,2]
[398070262,1765355444221,-500.0,0.00014052,2]
[398070263,1765355444230,-500.0,0.00014052,2]
[398070264,1765355444240,-512.8692514,0.00014052,2]
[398070265,1765355444250,-500.0,0.00014052,2]
[398070266,1765355444260,-500.0,0.00014052,2]
[398070267,1765355444273,-500.0,0.00014052,2]
[398070268,1765355444282,-500.0,0.00014052,2]
[398070269,1765355444294,-500.0,0.00014052,2]
[398070270,1765355444304,-500.0,0.00014052,2]
[398070271,1765355444537,-580.49,0.00014052,2]
[398070272,1765355444573,-283.95454724,0.00014052,2]
[398070273,1765355444582,-500.0,0.00014052,2]
[398070274,1765355444592,-500.0,0.00014052,2]
[398070275,1765355444602,-500.0,0.00014052,2]
[398070276,1765355444612,-500.0,0.00014052,2]
[398070277,1765355444622,-500.0,0.00014052,2]
[398070278,1765355444632,-500.0,0.00014052,2]
[398070279,1765355444642,-500.0,0.00014052,2]
[398070280,1765355444651,-500.0,0.00014052,2]
[398070281,1765355444661,-500.0,0.00014052,2]
[398070282,1765355444671,-500.0,0.00014052,2]
[398070283,1765355444680,-500.0,0.00014052,2]
[398070284,1765355444690,-604.06,0.00014052,2]
[398070285,1765355444700,-525.19859555,0.00014052,2]
[398070286,1765355444710,-500.0,0.00014052,2]
[398070287,1765355444720,-500.0,0.00014052,2]
[398070288,1765355444729,-500.0,0.00014052,2]
[398070289,1765355444739,-500.0,0.00014052,2]
[398070290,1765355444748,-500.0,0.00014052,2]
[398070291,1765355444759,-500.0,0.00014052,2]
[398070292,1765355444769,-573.86,0.00014052,2]
[398070293,1765355444779,-371.4079137,0.00014052,2]
[398070294,1765355444788,-500.0,0.00014052,2]
[398070295,1765355444798,-500.0,0.00014052,2]
[398070296,1765355444808,-500.0,0.00014052,2]
[398070297,1765355444819,-500.0,0.00014052,2]
[398070298,1765355444829,-500.0,0.00014052,2]
[398070299,1765355444838,-500.0,0.00014052,2]
[398070300,1765355444848,-500.0,0.00014052,2]
[398070301,1765355444858,-500.0,0.00014052,2]
[398070302,1765355444867,-500.0,0.00014052,2]
[398070303,1765355444877,-500.0,0.00014052,2]
[398070304,1765355444887,-500.0,0.00014052,2]
[398070305,1765355444898,-500.0,0.00014052,2]
[398070306,1765355444907,-500.0,0.00014052,2]
[398070307,1765355444917,-500.0,0.00014052,2]
[398070308,1765355444926,-509.68,0.00014052,2]
[398070309,1765355444935,-500.0,0.00014052,2]
[398070310,1765355444945,-225.33109518,0.00014052,2]
[398070311,1765355444954,-546.23,0.00014052,2]
[398070312,1765355444963,-500.0,0.00014052,2]
[398070313,1765355444973,-500.0,0.00014052,2]
[398070314,1765355444982,-500.0,0.00014052,2]
[398070315,1765355444992,-427.26324322,0.00014052,2]
[398070316,1765355445000,-500.0,0.00014052,2]
[398070317,1765355445009,-500.0,0.00014052,2]
[398070318,1765355445019,-534.13,0.00014052,2]
[398070319,1765355445029,-500.0,0.00014052,2]
[398070320,1765355445039,-500.0,0.00014052,2]
[398070321,1765355445049,-500.0,0.00014052,2]
[398070322,1765355445058,-481.75003124,0.00014052,2]
[398070323,1765355445067,-500.0,0.00014052,2]
[398070324,1765355445077,-500.0,0.00014052,2]
[398070325,1765355445086,-615.28,0.00014052,2]
[398070326,1765355445095,-500.0,0.00014052,2]
[398070327,1765355445105,-500.0,0.00014052,2]
[398070328,1765355445114,-500.0,0.00014052,2]
[398070329,1765355445124,-500.0,0.00014052,2]
[398070330,1765355445134,-500.0,0.00014052,2]
[398070331,1765355445143,-500.0,0.00014052,2]
[398070332,1765355445153,-591.7,0.00014052,2]
[398070333,1765355445162,-500.0,0.00014052,2]
[398070334,1765355445172,-583.08,0.00014052,2]
[398070335,1765355445181,-500.0,0.00014052,2]
[398070336,1765355445192,-500.0,0.00014052,2]
[398070337,1765355445202,-500.0,0.00014052,2]
[398070338,1765355445212,-500.0,0.00014052,2]
[398070339,1765355445221,-500.0,0.00014052,2]
[398070340,1765355445230,-500.0,0.00014052,2]
[398070341,1765355445239,-504.48323249,0.00014052,2]
[398070342,1765355445248,-500.0,0.00014052,2]
[398070343,1765355445258,-500.0,0.00014052,2]
[398070344,1765355445268,-500.0,0.00014052,2]
[398070345,1765355445280,-742.43,0.00014052,2]
[398070346,1765355445289,-600.67,0.00014052,2]
[398070347,1765355445299,-500.0,0.00014052,2]
[398070348,1765355445308,-512.73,0.00014052,2]
[398070349,1765355445318,-500.0,0.00014052,2]
[398070350,1765355445327,-500.0,0.00014052,2]
[398070351,1765355445337,-849.82,0.00014052,2]
[398070352,1765355445346,-558.83,0.00014052,2]
[398070353,1765355445355,-500.0,0.00014052,2]
[398070354,1765355445365,-500.0,0.00014052,2]
[398070355,1765355445373,-500.0,0.00014052,2]
[398070356,1765355445383,-500.0,0.00014052,2]
[398070357,1765355445391,-500.0,0.00014052,2]
[398070358,1765355445400,-500.0,0.00014052,2]
[398070359,1765355445410,-500.0,0.00014052,2]
[398070360,1765355445419,-500.0,0.00014052,2]
[398070361,1765355445428,-500.0,0.00014052,2]
[398070362,1765355445437,-500.0,0.00014052,2]
[398070363,1765355445446,-500.0,0.00014052,2]
[398070364,1765355445455,-500.0,0.00014052,2]
[398070365,1765355445464,-500.0,0.00014052,2]
[398070366,1765355445474,-500.0,0.00014052,2]
[398070367,1765355445484,-500.0,0.00014052,2]
[398070368,1765355445493,-500.0,0.00014052,2]
[398070369,1765355445503,-500.0,0.00014052,2]
[398070370,1765355445513,-500.0,0.00014052,2]
[398070371,1765355445524,-500.0,0.00014052,2]
[398070372,1765355445534,-500.0,0.00014052,2]
[398070373,1765355445544,-603.65,0.00014052,2]
[398070374,1765355445554,-500.0,0.00014052,2]
[398070375,1765355445564,-500.0,0.00014052,2]
[398070376,1765355445573,-500.0,0.00014052,2]
[398070377,1765355445583,-500.0,0.00014052,2]
[398070378,1765355445593,-1170.79,0.00014052,2]
[398070379,1765355445602,-1010.84,0.00014052,2]
[398070380,1765355445611,-500.0,0.00014052,2]
[398070381,1765355445621,-500.0,0.00014052,2]
[398070382,1765355445630,-500.0,0.00014052,2]
[398070383,1765355445641,-500.0,0.00014052,2]
[398070384,1765355445651,-533.34,0.00014052,2]
[398070385,1765355445661,-534.37799139,0.00014052,2]
[398070386,1765355445672,-500.0,0.00014052,2]
[398070387,1765355445683,-500.0,0.00014052,2]
[398070388,1765355445692,-500.0,0.00014052,2]
[398070389,1765355445702,-500.0,0.00014052,2]
[398070390,1765355445711,-718.55,0.00014052,2]
[398070391,1765355445722,-804.78,0.00014052,2]
[398070392,1765355445732,-500.0,0.00014052,2]
[398070393,1765355445742,-500.0,0.00014052,2]
[398070394,1765355445752,-500.0,0.00014052,2]
[398070395,1765355445763,-500.0,0.00014052,2]
[398070396,1765355445775,-500.0,0.00014052,2]
[398070397,1765355445786,-676.97,0.00014052,2]
[398070398,1765355445795,-500.0,0.00014052,2]
[398070399,1765355445805,-500.0,0.00014052,2]
[398070400,1765355445815,-500.0,0.00014052,2]
[398070401,1765355445824,-500.0,0.00014052,2]
[398070402,1765355445834,-500.0,0.00014052,2]
[398070403,1765355445845,-500.0,0.00014052,2]
[398070404,1765355445855,-500.0,0.00014052,2]
[398070405,1765355445864,-500.0,0.00014052,2]
[398070406,1765355445875,-683.07,0.00014052,2]
[398070407,1765355445884,-725.5,0.00014052,2]
[398070408,1765355445894,-500.0,0.00014052,2]
[398070409,1765355445904,-694.12,0.00014052,2]
[398070410,1765355445914,-500.0,0.00014052,2]
[398070411,1765355445923,-625.02,0.00014052,2]
[398070412,1765355445932,-223.04810956,0.00014052,2]
[398070413,1765355445942,-1791.15,0.00014052,2]
[398070414,1765355445952,-500.0,0.00014052,2]
[398070415,1765355445961,-500.0,0.00014052,2]
[398070416,1765355445970,-500.0,0.00014052,2]
[398070417,1765355445979,-500.0,0.00014052,2]
[398070418,1765355445988,-500.0,0.00014052,2]
[398070419,1765355445998,-168.50420577,0.00014052,2]
[398070420,1765355446007,-500.0,0.00014052,2]
[398070421,1765355446017,-500.0,0.00014052,2]
[398070422,1765355446027,-500.0,0.00014052,2]
[398070423,1765355446036,-500.0,0.00014052,2]
[398070424,1765355446045,-500.0,0.00014052,2]
[398070425,1765355446054,-865.23,0.00014052,2]
[398070426,1765355446064,-500.0,0.00014052,2]
[398070427,1765355446073,-500.0,0.00014052,2]
[398070428,1765355446082,-500.0,0.00014052,2]
[398070429,1765355446092,-702.19,0.00014052,2]
[398070430,1765355446102,-500.0,0.00014052,2]
[398070431,1765355446111,-249.3468004,0.00014052,2]
[398070432,1765355446122,-571.87,0.00014052,2]
[398070433,1765355446132,-500.0,0.00014052,2]
[398070434,1765355446141,-500.0,0.00014052,2]
[398070435,1765355446152,-500.0,0.00014052,2]
[398070436,1765355446162,-500.0,0.00014052,2]
[398070437,1765355446171,-500.0,0.00014052,2]
[398070438,1765355446181,-500.0,0.00014052,2]
[398070439,1765355446192,-501.76,0.00014052,2]
[398070440,1765355446201,-500.0,0.00014052,2]
[398070441,1765355446211,-538.31,0.00014052,2]
[398070442,1765355446220,-500.0,0.00014052,2]
[398070443,1765355446231,-823.7,0.00014052,2]
[398070444,1765355446240,-483.93219829,0.00014052,2]
[398070445,1765355446250,-500.0,0.00014052,2]
[398070446,1765355446259,-500.0,0.00014052,2]
[398070447,1765355446273,-500.0,0.00014052,2]
[398070448,1765355446282,-500.0,0.00014052,2]
[398070449,1765355446292,-514.77,0.00014052,2]
[398070450,1765355446302,-746.32,0.00014052,2]
[398070451,1765355446312,-500.0,0.00014052,2]
[398070452,1765355446321,-500.0,0.00014052,2]
[398070453,1765355446331,-500.0,0.00014052,2]
[398070454,1765355446340,-500.0,0.00014052,2]
[398070455,1765355446349,-1239.48,0.00014052,2]
[398070456,1765355446358,-500.0,0.00014052,2]
[398070457,1765355446367,-506.58295384,0.00014052,2]
[398070458,1765355446377,-500.0,0.00014052,2]
[398070459,1765355446387,-500.0,0.00014052,2]
[398070460,1765355446396,-300.22159769,0.00014052,2]
[398070461,1765355446405,-500.0,0.00014052,2]
[398070462,1765355446416,-500.0,0.00014052,2]
[398070463,1765355446426,-500.0,0.00014052,2]
[398070464,1765355446436,-500.0,0.00014052,2]
[398070465,1765355446445,-500.0,0.00014052,2]
[398070466,1765355446455,-500.0,0.00014052,2]
[398070467,1765355446465,-500.0,0.00014052,2]
[398070468,1765355446475,-574.67,0.00014052,2]
[398070469,1765355446484,-706.08,0.00014052,2]
[398070470,1765355446494,-500.0,0.00014052,2]
[398070471,1765355446505,-543.68,0.00014052,2]
[398070472,1765355446514,-500.0,0.00014052,2]
[398070473,1765355446523,-580.96,0.00014052,2]
[398070474,1765355446533,-500.0,0.00014052,2]
[398070475,1765355446543,-554.64,0.00014052,2]
[398070476,1765355446553,-1174.03,0.00014052,2]
[398070477,1765355446562,-500.0,0.00014052,2]
[398070478,1765355446572,-500.0,0.00014052,2]
[398070479,1765355446582,-500.0,0.00014052,2]
[398070480,1765355446591,-500.0,0.00014052,2]
[398070481,1765355446601,-500.0,0.00014052,2]
[398070482,1765355446611,-508.91,0.00014052,2]
[398070484,1765355446620,-500.0,0.00014052,2]
[398070486,1765355446629,-500.0,0.00014052,2]
[398070487,1765355446639,-500.0,0.00014052,2]
[398070488,1765355446649,-535.22541871,0.00014052,2]
[398070489,1765355446659,-441.69618644,0.00014052,2]
[398070490,1765355446668,-901.29,0.00014052,2]
[398070491,1765355446677,-500.0,0.00014052,2]
[398070492,1765355446687,-541.65,0.00014052,2]
[398070494,1765355446696,-500.0,0.00014052,2]
[398070496,1765355446706,-500.0,0.00014052,2]
[398070498,1765355446715,-537.09,0.00014052,2]
[398070500,1765355446726,-971.23,0.00014052,2]
[398070502,1765355446735,-500.0,0.00014052,2]
[398070503,1765355446744,-1000.05,0.00014052,2]
[398070505,1765355446754,-78.84435667,0.00014052,2]
[398070506,1765355447267,-463.663,0.00014052,2]
[398070507,1765355448232,-500.0,0.00013753,2]
[398070508,1765355448241,-408.811586,0.00014027,2]
[398070509,1765355448282,-91.188414,0.00014027,2]
[398070510,1765355448291,-14.24355251,0.00014052,2]
[398070511,1765355449263,-34.28909082,0.00014052,2]
[398070512,1765355449281,-500.0,0.00014052,2]
[398070513,1765355449303,-169.29927678,0.00014052,2]
[398070514,1765355449327,-330.92628859,0.00014052,2]
[398070515,1765355449344,-500.0,0.00014052,2]
[398070516,1765355449357,-500.0,0.00014052,2]
[398070517,1765355449372,-500.0,0.00014052,2]
[398070518,1765355449387,-500.0,0.00014052,2]
[398070519,1765355449399,-697.91,0.00014052,2]
[398070520,1765355449411,-0.384036,0.00014052,2]
[398070521,1765355449437,-499.615964,0.00014052,2]
[398070522,1765355449449,-553.78,0.00014052,2]
[398070523,1765355449460,-223.73066064,0.00014052,2]
[398070524,1765355555456,439.12669936,0.00012635,2]
[398070525,1765355555482,500.0,0.00012635,2]
[398070526,1765355555507,157.87330064,0.00012635,2]
[398070527,1765355565936,342.12669936,0.00012003,2]
[398070528,1765355565962,754.87330064,0.00012003,2]
[398070529,1765355570797,825.12669936,0.00011403,2]
[398070530,1765355592528,42561.99,0.00025,120]
[398070531,1765355661933,400.0,0.000202,30]
[398070533,1765356158580,501.65512545,0.00010001,2]
[398070534,1765356533640,185.47,9.485e-05,2]
[398070536,1765356547131,-202.65042615,0.00010291,2]
[398070537,1765356547154,-234.0,0.00010291,2]
[398070538,1765356547175,-250.0,0.00010291,2]
[398070539,1765356547196,-625.45444226,0.00010291,2]
[398070540,1765356568369,-502.40381673,0.00010291,2]
[398070541,1765356568389,-199.48447557,0.00010733,2]
[398070542,1765356568410,-2056.90793665,0.00010819,2]
[398070543,1765356568432,-1097.0,0.00010833,2]
[398070544,1765356568452,-250.0,0.0001132,2]
[398070545,1765356568472,-250.0,0.0001132,2]
[398070546,1765356568491,-271.87330064,0.00011403,2]
[398070547,1765356568512,-1852.42,0.00012212,2]
[398070548,1765356568531,-224.19,0.00012269,2]
[398070549,1765356568645,-159.04,0.00012275,2]
[398070550,1765356568891,-166.6,0.00012283,2]
[398070551,1765356568911,-204.59,0.00012283,2]
[398070552,1765356568931,-250.0,0.00012344,2]
[398070553,1765356568951,-559.0,0.00012377,2]
[398070554,1765356568970,-300.0,0.00012377,2]
[398070555,1765356568990,-150.0,0.00012378,2]
[398070556,1765356569010,-150.0,0.00012378,2]
[398070557,1765356569031,-150.0,0.00012378,2]
[398070558,1765356569052,-150.0,0.00012378,2]
[398070559,1765356569072,-264.60302406,0.00012378,2]
[398070560,1765356569092,-150.0,0.00012378,2]
[398070562,1765356609245,-304.0,0.00012389,2]
[398070563,1765356609266,-88.88744635,0.00012389,2]
[398070580,1765356631326,-162.11255365,0.00012389,2]
[398070581,1765356631335,-495.0,0.00012392,2]
[398070582,1765356631344,-352.0,0.00012434,2]
[398070583,1765356631353,-324.47321449,0.0001258,2]
[398070584,1765356631390,-675.52678551,0.0001258,2]
[398070585,1765356631400,-1301.57,0.00012768,2]
[398070586,1765356631409,-661.0,0.00012792,2]
[398070587,1765356631419,-999.0,0.00012891,3]
[398070588,1765356631429,-150.0,0.00012892,2]
[398070589,1765356631439,-300.0,0.00012892,2]
[398070590,1765356631448,-300.0,0.00012892,2]
[398070591,1765356631458,-300.0,0.00012892,2]
[398070592,1765356631467,-1200.0,0.00012892,2]
[398070593,1765356631476,-1173.79,0.00012893,2]
[398070594,1765356631485,-150.99,0.00012893,2]
[398070595,1765356631494,-9999.99,0.00012893,2]
[398070596,1765356631503,-299.99,0.00012893,2]
[398070597,1765356631513,-5335.03,0.00012893,2]
[398070598,1765356631521,-150.99,0.00012893,2]
[398070599,1765356631530,-308.63,0.00012893,2]
[398070600,1765356631539,-999.99,0.00012893,2]
[398070602,1765356631548,-499.99,0.00012893,2]
[398070603,1765356631557,-9999.99,0.00012893,2]
[398070604,1765356631566,-547.33,0.00012893,2]
[398070605,1765356631575,-2447.56,0.000129,2]
[398070606,1765356631584,-723.58,0.00012911,2]
[398070607,1765356631594,-200.0,0.00012993,2]
[398070609,1765356631603,-200.0,0.00012993,2]
[398070610,1765356631613,-200.0,0.00012993,2]
[398070611,1765356631622,-500.0,0.00012993,2]
[398070612,1765356631631,-151.0,0.00012993,2]
[398070613,1765356631640,-151.0,0.00012993,2]
[398070614,1765356631650,-151.0,0.00012993,2]
[398070615,1765356631660,-151.0,0.00012993,2]
[398070616,1765356631669,-151.0,0.00012993,2]
[398070617,1765356631679,-151.0,0.00012993,2]
[398070618,1765356631688,-151.0,0.00012993,2]
[398070619,1765356631697,-151.0,0.00012993,2]
[398070620,1765356631706,-151.0,0.00012993,2]
[398070621,1765356631715,-151.0,0.00012993,2]
[398070622,1765356631724,-151.0,0.00012993,2]
[398070623,1765356631734,-151.0,0.00012993,2]
[398070624,1765356631744,-9750.0,0.00013001,2]
[398070625,1765356631754,-199.48447556,0.00013178,2]
[398070626,1765356631763,-300.0,0.00013278,2]
[398070627,1765356631772,-429.95,0.00013278,2]
[398070628,1765356631782,-166.6,0.00013296,2]
[398070629,1765356631792,-1097.0,0.000133,2]
[398070630,1765356631801,-267.46074303,0.00013434,2]